bitfinex/quotes_BTCUSD_20260126
["timestamp","ask_amount","ask_price","bid_price","bid_amount"]
[1769457174918,0.40453344,88168.0,88155.0,0.02423631]
[1769457175123,0.40453344,88168.0,88151.0,0.67386683]
[1769457175124,0.46124358,88168.0,88151.0,0.67386683]
[1769457175335,0.03,88166.0,88151.0,0.67386683]
[1769457175808,0.03,88166.0,88153.0,0.02423631]
[1769457176417,0.03,88165.0,88153.0,0.02423631]
[1769457177552,0.04134236,88165.0,88148.0,0.0005541]
[1769457177766,0.34021272,88181.0,88148.0,0.0005541]
[1769457177767,0.03,88154.0,88148.0,0.0005541]
[1769457178469,0.39067195,88158.0,88141.0,0.67426683]
[1769457178470,0.03,88152.0,88141.0,0.0004]
[1769457179598,0.03,88151.0,88141.0,0.0004]
[1769457179974,0.03,88151.0,88142.0,0.67386683]
[1769457180644,0.05431255,88157.0,88142.0,0.67386683]
[1769457181094,0.05431255,88157.0,88142.0,0.54708581]
[1769457181319,0.05431255,88157.0,88142.0,0.30666271]
[1769457181520,0.05431255,88157.0,88142.0,0.13620026]
[1769457181727,0.17436,88162.0,88144.0,0.67386683]
[1769457181949,0.17436,88162.0,88146.0,0.67386683]
[1769457182154,0.0454,88165.0,88146.0,0.67386683]
[1769457182155,0.19867255,88165.0,88146.0,0.67386683]
[1769457182367,0.02431255,88164.0,88146.0,0.67386683]
[1769457182818,0.03,88163.0,88146.0,0.67386683]
[1769457183017,0.03,88161.0,88146.0,0.67386683]
[1769457183655,0.03,88159.0,88146.0,0.67386683]
[1769457184040,0.05431255,88159.0,88146.0,0.67386683]
[1769457186280,0.05431255,88159.0,88143.0,0.00952064]
[1769457186538,0.05431255,88159.0,88144.0,0.67386683]
[1769457186777,0.03,88158.0,88144.0,0.67386683]
[1769457187858,0.03,88163.0,88144.0,0.67386683]
[1769457188066,0.03,88161.0,88144.0,0.67386683]
[1769457189232,0.03,88159.0,88144.0,0.67386683]
[1769457190258,0.03,88158.0,88144.0,0.67386683]
[1769457190720,0.01134339,88157.0,88141.0,0.0004]
[1769457190934,0.05473611,88156.0,88141.0,0.0004]
[1769457191142,0.03,88154.0,88141.0,0.0004]
[1769457192560,0.03,88152.0,88141.0,0.0004]
[1769457193157,0.06806122,88156.0,88141.0,0.0004]
[1769457193158,0.03,88150.0,88141.0,0.0004]
[1769457195354,0.05698479,88150.0,88141.0,0.0004]
[1769457200509,0.03,88149.0,88138.0,0.0019467]
[1769457200702,0.05698479,88147.0,88138.0,0.0019467]
[1769457202534,0.05698479,88147.0,88128.0,0.0004]
[1769457202535,0.03,88147.0,88128.0,0.0004]
[1769457202730,0.03,88136.0,88128.0,0.0004]
[1769457203394,0.03,88134.0,88128.0,0.0004]
[1769457203617,0.05698479,88132.0,88128.0,0.0004]
[1769457204025,0.03,88132.0,88128.0,0.0004]
[1769457204230,0.37972412,88140.0,88117.0,0.0001]
[1769457204231,0.0001843,88129.0,88117.0,0.0001]
[1769457204870,0.40972412,88130.0,88117.0,0.0001]
[1769457205068,0.03,88130.0,88118.0,0.64294902]
[1769457206215,0.03,88129.0,88118.0,0.0001843]
[1769457206512,0.03,88129.0,88118.0,0.64294902]
[1769457207223,0.03,88128.0,88118.0,0.64294902]
[1769457207797,0.51489059,88135.0,88118.0,0.64294902]
[1769457208123,0.023205,88135.0,88118.0,0.64294902]
[1769457208340,0.03,88134.0,88118.0,0.64294902]
[1769457211825,0.06807234,88142.0,88118.0,0.64294902]
[1769457211826,0.37972412,88130.0,88118.0,0.0001843]
[1769457212029,0.37972412,88130.0,88107.0,0.0001843]
[1769457212030,0.0001,88116.0,88107.0,0.66754791]
[1769457212238,0.0001,88116.0,88107.0,0.0001843]
[1769457212428,0.03,88115.0,88107.0,0.0001843]
[1769457213448,0.0001,88116.0,88107.0,0.0001843]
[1769457213649,0.0001,88116.0,88100.0,0.66736361]
[1769457213650,0.0001,88116.0,88102.0,0.64289302]
[1769457214257,0.0001,88116.0,88102.0,0.66749191]
[1769457215023,0.0001,88116.0,88102.0,0.0001283]
[1769457215225,0.03,88111.0,88102.0,0.0001283]
[1769457215985,0.053205,88111.0,88102.0,0.0001283]
[1769457216467,0.03,88109.0,88102.0,0.0001283]
[1769457218284,0.03,88109.0,88099.0,0.1744]
[1769457218992,0.03,88109.0,88094.0,0.04544]
[1769457218993,0.03,88106.0,88094.0,0.04544]
[1769457219193,0.053205,88106.0,88094.0,0.04544]
[1769457219795,0.03,88106.0,88094.0,0.68820472]
[1769457219994,0.55416412,88112.0,88095.0,0.02459889]
[1769457220225,0.55416412,88112.0,88098.0,0.64276472]
[1769457220829,0.37972412,88112.0,88098.0,0.64276472]
[1769457221005,0.03,88107.0,88091.0,0.02216354]
[1769457221374,0.03,88100.0,88091.0,0.02216354]
[1769457223328,0.03,88099.0,88091.0,0.02216354]
[1769457224378,0.03,88098.0,88091.0,0.02216354]
[1769457224583,0.17444,88103.0,88091.0,0.02216354]
[1769457224795,0.17444,88103.0,88092.0,0.64276472]
[1769457225375,0.03,88102.0,88092.0,0.64276472]
[1769457226409,0.03,88101.0,88092.0,0.64276472]
[1769457227445,0.03,88100.0,88092.0,0.64276472]
[1769457227814,0.03,88100.0,88091.0,0.02216354]
[1769457228518,0.03,88099.0,88091.0,0.02216354]
[1769457229555,0.03,88098.0,88091.0,0.02216354]
[1769457230682,0.03,88097.0,88091.0,0.02216354]
[1769457231750,0.03,88105.0,88091.0,0.02216354]
[1769457232485,0.03,88103.0,88091.0,0.02216354]
[1769457235076,0.03,88105.0,88091.0,0.02216354]
[1769457235286,0.74489505,88105.0,88091.0,0.02216354]
[1769457237070,0.03,88100.0,88091.0,0.02216354]
[1769457237503,0.03,88098.0,88091.0,0.02216354]
[1769457238531,0.03,88097.0,88091.0,0.02216354]
[1769457239557,0.03,88096.0,88091.0,0.02216354]
[1769457240581,0.03,88095.0,88091.0,0.02216354]
[1769457241588,0.03,88094.0,88089.0,0.0002188]
[1769457241921,0.72155838,88090.0,88087.0,0.0004]
[1769457242060,0.03,88090.0,88087.0,0.0004]
[1769457242661,0.03,88094.0,88087.0,0.0004]
[1769457242880,0.03,88094.0,88087.0,2.3e-07]
[1769457243081,0.69155838,88089.0,88085.0,2.3e-07]
[1769457243283,0.72155838,88086.0,88085.0,2.3e-07]
[1769457243525,0.03,88082.0,88054.0,0.1476]
[1769457243722,0.04135305,88082.0,88070.0,0.02406329]
[1769457243958,0.04135305,88082.0,88066.0,0.02406329]
[1769457243959,0.12414493,88082.0,88066.0,0.02406329]
[1769457244389,0.03,88082.0,88066.0,0.02406329]
[1769457244595,0.72155838,88082.0,88066.0,0.02406329]
[1769457245307,0.09145201,88086.0,88066.0,0.02406329]
[1769457245308,0.72155838,88081.0,88066.0,0.02406329]
[1769457245515,0.74489505,88081.0,88066.0,0.02406329]
[1769457246484,0.74489505,88081.0,88052.0,0.0002]
[1769457246485,0.03,88075.0,88057.0,0.02406329]
[1769457246689,0.7596809,88077.0,88075.0,0.00089999]
[1769457246690,0.69155838,88077.0,88075.0,0.00089999]
[1769457246854,0.69155838,88077.0,88061.0,0.69305579]
[1769457247472,0.03,88076.0,88061.0,0.69305579]
[1769457248302,0.69155838,88077.0,88063.0,9.707e-05]
[1769457248303,0.03,88074.0,88063.0,9.707e-05]
[1769457249205,0.03,88073.0,88063.0,9.707e-05]
[1769457249812,0.07789536,88080.0,88063.0,0.02416036]
[1769457250010,0.17452,88079.0,88070.0,0.38044623]
[1769457250215,0.01135099,88098.0,88070.0,0.38044623]
[1769457250216,0.03,88083.0,88072.0,0.71711908]
[1769457250641,0.03,88083.0,88072.0,0.7164757]
[1769457251343,0.03,88083.0,88072.0,0.02341991]
[1769457251559,0.03,88079.0,88063.0,9.707e-05]
[1769457251775,0.03,88077.0,88063.0,9.707e-05]
[1769457253380,0.03,88077.0,88063.0,0.69315286]
[1769457253793,0.03,88076.0,88063.0,0.69283119]
[1769457254835,0.03,88075.0,88063.0,0.69283119]
[1769457255794,0.03,88075.0,88056.0,0.0001857]
[1769457255795,0.03,88072.0,88056.0,0.0001857]
[1769457256011,0.41044623,88070.0,88056.0,0.0001857]
[1769457256219,0.03,88064.0,88056.0,0.0001857]
[1769457256649,0.69155838,88065.0,88052.0,0.0002]
[1769457256650,0.72155838,88062.0,88052.0,0.0002]
[1769457256851,0.0001857,88056.0,88052.0,0.0002]
[1769457257052,0.72155838,88060.0,88052.0,0.0002]
[1769457257251,0.72155838,88060.0,88041.0,0.0002477]
[1769457257252,0.03,88049.0,88041.0,0.0002477]
[1769457258381,0.74489505,88049.0,88041.0,0.0002477]
[1769457258612,0.03,88047.0,88041.0,0.0002477]
[1769457262279,0.72300982,88047.0,88041.0,0.0002477]
[1769457262895,0.24265804,88057.0,88034.0,0.66901336]
[1769457262896,0.03,88049.0,88034.0,0.66901336]
[1769457263830,0.03,88048.0,88035.0,0.69210071]
[1769457264522,0.03,88048.0,88035.0,0.69177901]
[1769457265109,0.03,88047.0,88035.0,0.69177901]
[1769457265731,0.03,88047.0,88028.0,0.66901336]
[1769457265951,0.03,88046.0,88029.0,0.66901336]
[1769457266361,0.1090507,88045.0,88029.0,0.69210071]
[1769457266557,0.02434214,88046.0,88029.0,0.69210071]
[1769457266764,0.55981661,88045.0,88029.0,0.69210071]
[1769457266975,0.55981661,88045.0,88027.0,0.0002477]
[1769457267199,0.03,88039.0,88027.0,0.0002477]
[1769457267630,0.03,88037.0,88027.0,0.0002477]
[1769457267842,0.55981661,88038.0,88027.0,0.0002477]
[1769457267843,0.03,88035.0,88027.0,0.0002477]
[1769457268058,0.58981661,88035.0,88027.0,0.0002477]
[1769457268476,0.61415875,88035.0,88027.0,0.0002477]
[1769457268702,0.05434214,88035.0,88027.0,0.0002477]
[1769457271359,0.03,88033.0,88027.0,0.0002477]
[1769457271577,0.03,88029.0,88027.0,0.0002477]
[1769457271781,0.58981661,88029.0,88027.0,0.0002477]
[1769457272213,0.61415875,88028.0,88012.0,0.02333505]
[1769457272412,0.03,88028.0,88012.0,0.66926106]
[1769457272614,0.03,88028.0,88014.0,0.69210071]
[1769457272821,0.03,88023.0,88012.0,0.0002477]
[1769457273477,0.03,88023.0,88012.0,0.69234841]
[1769457273879,0.03,88022.0,88012.0,0.69234841]
[1769457275013,0.03,88021.0,88012.0,0.69234841]
[1769457276041,0.03,88027.0,88012.0,0.69234841]
[1769457276248,0.03,88027.0,88012.0,0.02333505]
[1769457276454,0.03,88025.0,88012.0,0.0002477]
[1769457276876,0.52796854,88027.0,88012.0,0.0002477]
[1769457277729,0.03,88026.0,88012.0,0.0002477]
[1769457278579,0.03,88026.0,88013.0,0.06925484]
[1769457279438,0.33829684,88027.0,88013.0,0.06925484]
[1769457280946,0.3370061,88128.0,88016.0,0.66901336]
[1769457280947,0.03,88039.0,88016.0,0.66901336]
[1769457281216,0.03,88036.0,88020.0,0.66901336]
[1769457281438,0.03,88036.0,88023.0,0.02308735]
[1769457281647,0.03,88036.0,88024.0,0.06921007]
[1769457282905,0.03,88036.0,88023.0,0.02308735]
[1769457284396,0.03,88036.0,88022.0,0.66901336]
[1769457284397,0.03,88036.0,88024.0,0.66901336]
[1769457284584,0.03,88036.0,88025.0,0.02308735]
[1769457285549,0.17464,88037.0,88025.0,0.02308735]
[1769457285550,0.03,88035.0,88025.0,0.02308735]
[1769457286447,0.03,88034.0,88025.0,0.02308735]
[1769457287554,0.03,88033.0,88025.0,0.02308735]
[1769457288361,0.17464,88044.0,88012.0,0.0002477]
[1769457288362,0.03,88022.0,88012.0,0.0002477]
[1769457288609,0.03,88020.0,88012.0,0.0002477]
[1769457289643,0.03,88019.0,88012.0,0.0002477]
[1769457290565,0.03,88018.0,88012.0,0.0002477]
[1769457291715,0.03,88015.0,88012.0,0.0002477]
[1769457291917,0.03,88015.0,88009.0,0.0002]
[1769457292518,0.44267138,88022.0,88009.0,0.0002]
[1769457292719,0.03,88027.0,88010.0,0.67728542]
[1769457292936,0.03,88027.0,88011.0,0.06774854]
[1769457293164,0.03,88025.0,88011.0,0.06774854]
[1769457293388,0.01135989,88029.0,88011.0,0.06774854]
[1769457293389,0.05679954,88029.0,88011.0,0.06774854]
[1769457293636,0.01136002,88028.0,88011.0,0.06774854]
[1769457293911,0.01136015,88027.0,88010.0,0.67728542]
[1769457294434,0.6720724,88038.0,88027.0,0.0002477]
[1769457294697,0.6720724,88038.0,88023.0,0.02499999]
[1769457295326,0.03,88037.0,88023.0,0.02499999]
[1769457295539,0.03,88037.0,88012.0,0.65274378]
[1769457295725,0.03,88037.0,88015.0,0.02454164]
[1769457295915,0.03,88037.0,88017.0,0.02454164]
[1769457296130,0.03,88037.0,88019.0,0.02454164]
[1769457296336,0.03,88037.0,88022.0,0.65274378]
[1769457296541,0.03,88036.0,88012.0,0.65274378]
[1769457296778,0.03,88036.0,88016.0,0.65274378]
[1769457296950,0.03,88036.0,88019.0,0.02454164]
[1769457297112,0.03,88036.0,88022.0,0.65274378]
[1769457297345,0.03,88036.0,88011.0,0.01136221]
[1769457297346,0.03,88035.0,88024.0,0.02454164]
[1769457298148,0.03,88035.0,88025.0,0.67728542]
[1769457298351,0.03,88035.0,88026.0,0.02454164]
[1769457298559,0.03,88034.0,88028.0,0.02454164]
[1769457298977,0.03,88034.0,88028.0,0.67728542]
[1769457299187,0.03,88034.0,88012.0,0.0568103]
[1769457299391,0.03,88034.0,88011.0,0.05681104]
[1769457299392,0.03,88034.0,88021.0,0.02454164]
[1769457299570,0.03,88033.0,88021.0,0.02454164]
[1769457300673,0.03,88032.0,88022.0,0.65274378]
[1769457300883,0.03,88032.0,88023.0,0.02454164]
[1769457301105,0.03,88032.0,88024.0,0.03776615]
[1769457301725,0.03,88031.0,88024.0,0.03776615]
[1769457301928,0.03,88031.0,88023.0,0.02454164]
[1769457302133,0.03,88031.0,88020.0,0.38044623]
[1769457302343,0.03,88031.0,88021.0,0.67728542]
[1769457302756,0.03,88030.0,88021.0,0.67728542]
[1769457303729,0.03,88039.0,88021.0,0.67728542]
[1769457304882,0.03,88038.0,88021.0,0.67728542]
[1769457305356,0.7269463,88038.0,88021.0,0.67728542]
[1769457308566,0.0548739,88038.0,88021.0,0.67728542]
[1769457311395,0.03,88052.0,88032.0,0.65274378]
[1769457311719,0.03,88052.0,88037.0,0.02454164]
[1769457311919,0.03,88052.0,88038.0,0.67728542]
[1769457312172,0.03,88052.0,88041.0,0.65274378]
[1769457312378,0.0003129,88054.0,88041.0,0.65274378]
[1769457313430,0.01135499,88067.0,88035.0,0.17464]
[1769457313431,0.03,88058.0,88046.0,0.65274378]
[1769457313635,0.03,88058.0,88050.0,0.65274378]
[1769457314315,0.03,88057.0,88050.0,0.65274378]
[1769457314726,0.0248739,88069.0,88050.0,0.65274378]
[1769457314966,0.6723599,88071.0,88052.0,0.65274378]
[1769457314967,0.0002875,88071.0,88052.0,0.65274378]
[1769457315174,0.0002875,88071.0,88054.0,0.65274378]
[1769457315386,0.0002875,88071.0,88051.0,0.05028454]
[1769457315387,0.0002875,88071.0,88058.0,0.65274378]
[1769457318276,0.0002875,88071.0,88051.0,0.05028454]
[1769457318478,0.03,88057.0,88049.0,0.17464]
[1769457318685,0.03,88057.0,88050.0,0.06774854]
[1769457318891,0.03,88053.0,88035.0,0.68422214]
[1769457319043,0.03,88053.0,88035.0,0.68971323]
[1769457319452,0.03,88053.0,88035.0,0.68422214]
[1769457319650,0.03,88053.0,88037.0,0.66999083]
[1769457320012,0.03,88053.0,88041.0,0.66999083]
[1769457320776,0.03,88052.0,88041.0,0.66999083]
[1769457321158,0.03,88052.0,88041.0,0.67098507]
[1769457321564,0.03,88052.0,88043.0,0.66999083]
[1769457321765,0.03,88060.0,88043.0,0.67098507]
[1769457322026,0.03,88060.0,88044.0,0.66999083]
[1769457322663,0.03,88060.0,88050.0,0.38063161]
[1769457323076,0.03,88060.0,88048.0,0.66999083]
[1769457325132,0.03,88067.0,88048.0,0.66999083]
[1769457325334,0.03,88061.0,88048.0,0.66999083]
[1769457325540,0.05468301,88061.0,88048.0,0.66999083]
[1769457325936,0.1746,88068.0,88048.0,0.66999083]
[1769457326152,0.1746,88068.0,88039.0,0.06815149]
[1769457326153,0.02468301,88078.0,88059.0,0.66999083]
[1769457326617,0.03,88073.0,88059.0,0.66999083]
[1769457328210,0.03,88069.0,88044.0,0.68134878]
[1769457328383,0.03,88069.0,88047.0,0.02360493]
[1769457328584,0.03,88069.0,88050.0,0.66999083]
[1769457329008,0.03,88065.0,88041.0,0.66999083]
[1769457329329,0.05468301,88063.0,88042.0,0.02360493]
[1769457329473,0.05468301,88063.0,88044.0,0.02360493]
[1769457329669,0.05468301,88063.0,88045.0,0.66999083]
[1769457329876,0.05468301,88063.0,88044.0,0.02360493]
[1769457329877,0.03,88061.0,88040.0,0.38063161]
[1769457330087,0.03,88055.0,88040.0,0.38063161]
[1769457330306,0.05468301,88055.0,88040.0,0.38063161]
[1769457330650,0.05468301,88055.0,88044.0,0.001]
[1769457331104,0.05468301,88055.0,88041.0,0.72517448]
[1769457331522,0.05468301,88055.0,88042.0,0.00113742]
[1769457331728,0.04548,88067.0,88042.0,0.67112825]
[1769457331729,0.03,88054.0,88042.0,0.67112825]
[1769457331945,0.03,88054.0,88042.0,0.66999083]
[1769457332136,0.03,88054.0,88041.0,0.05518365]
[1769457332137,0.03,88054.0,88043.0,0.68255572]
[1769457332839,0.03,88059.0,88043.0,0.68255572]
[1769457333961,0.03,88057.0,88038.0,0.02360493]
[1769457334189,0.03,88057.0,88041.0,0.66999083]
[1769457334979,0.03,88057.0,88041.0,0.69359576]
[1769457337777,0.03,88066.0,88042.0,0.02360493]
[1769457337976,0.04548,88069.0,88039.0,0.06815154]
[1769457337977,0.05468301,88064.0,88044.0,0.02360493]
[1769457338355,0.05468301,88064.0,88046.0,0.66999083]
[1769457338567,0.05468301,88064.0,88046.0,0.69359576]
[1769457341368,0.03,88063.0,88050.0,0.38063161]
[1769457341616,0.03,88063.0,88056.0,0.66999083]
[1769457341817,0.03,88063.0,88057.0,0.02360493]
[1769457342437,0.03,88062.0,88057.0,0.02360493]
[1769457343207,0.0002875,88071.0,88057.0,0.02360493]
[1769457345907,0.04146549,88079.0,88057.0,0.02360493]
[1769457346130,0.04146549,88079.0,88055.0,0.69359576]
[1769457346302,0.03,88077.0,88056.0,0.02360493]
[1769457346714,0.03,88077.0,88058.0,0.66999083]
[1769457346915,0.03,88077.0,88067.0,0.38063161]
[1769457347102,0.0002875,88088.0,88077.0,0.01]
[1769457347302,0.0002875,88088.0,88062.0,0.01135563]
[1769457347303,0.0302875,88088.0,88074.0,0.02499999]
[1769457347504,0.0302875,88088.0,88075.0,0.04056316]
[1769457347977,0.0302875,88088.0,88074.0,0.02499999]
[1769457348355,0.0002875,88088.0,88074.0,0.02499999]
[1769457354968,0.0002478,88088.0,88074.0,0.02499999]
[1769457355193,0.0302478,88088.0,88074.0,0.02499999]
[1769457356244,0.03,88087.0,88076.0,0.02478945]
[1769457356896,0.0302478,88087.0,88076.0,0.02478945]
[1769457357242,0.0002478,88087.0,88076.0,0.02478945]
[1769457360446,0.0002478,88087.0,88078.0,0.02478945]
[1769457360616,0.0002478,88087.0,88081.0,0.67639158]
[1769457360912,0.0002478,88087.0,88072.0,0.02478945]
[1769457361140,0.0002478,88087.0,88075.0,0.67639158]
[1769457361293,0.0002478,88087.0,88077.0,0.67639158]
[1769457361496,0.0002478,88087.0,88077.0,0.70118103]
[1769457363508,0.0002478,88087.0,88077.0,0.67639158]
[1769457363789,0.0002478,88087.0,88071.0,0.70118103]
[1769457363923,0.0002478,88087.0,88071.0,0.67639158]
[1769457364516,0.0002478,88087.0,88071.0,0.70118103]
[1769457369137,0.0002478,88087.0,88071.0,0.67639158]
[1769457369353,0.0002478,88087.0,88074.0,0.02478945]
[1769457369869,0.0002478,88087.0,88074.0,0.70118103]
[1769457370791,0.0002478,88087.0,88074.0,0.02478945]
[1769457370907,0.03,88086.0,88070.0,0.38063161]
[1769457371113,0.05418303,88086.0,88070.0,0.38063161]
[1769457371721,0.05418303,88086.0,88070.0,1.08181264]
[1769457371936,0.05418303,88086.0,88071.0,0.67639158]
[1769457372353,0.03,88085.0,88071.0,0.70118103]
[1769457373176,0.0302478,88085.0,88072.0,0.02478945]
[1769457373395,0.0002478,88085.0,88073.0,0.70118103]
[1769457373565,0.0002478,88085.0,88063.0,0.1858755]
[1769457373566,0.03,88090.0,88078.0,0.02478945]
[1769457373768,0.03,88090.0,88080.0,0.38024621]
[1769457374397,0.03,88089.0,88080.0,0.38024621]
[1769457375393,0.03,88094.0,88080.0,0.38024621]
[1769457377761,0.0302581,88112.0,88094.0,0.01]
[1769457378005,0.03,88110.0,88094.0,0.67607102]
[1769457378363,0.03,88108.0,88095.0,0.02724497]
[1769457378570,0.03,88106.0,88088.0,0.02478945]
[1769457378755,0.05269051,88106.0,88088.0,0.02478945]
[1769457379809,0.03,88099.0,88088.0,0.02478945]
[1769457380669,0.03,88099.0,88089.0,0.65533242]
[1769457381137,0.03,88099.0,88088.0,0.02478945]
[1769457382579,0.03,88098.0,88088.0,0.68012187]
[1769457383642,0.03,88097.0,88088.0,0.68012187]
[1769457384745,0.03,88096.0,88088.0,0.68012187]
[1769457385778,0.03,88095.0,88076.0,0.17452]
[1769457385949,0.03,88095.0,88078.0,0.02371768]
[1769457386158,0.03,88095.0,88078.0,0.6790501]
[1769457386722,0.03,88094.0,88078.0,0.6790501]
[1769457386926,0.03,88089.0,88077.0,0.65533242]
[1769457387859,0.03,88088.0,88077.0,0.65533242]
[1769457388940,0.03,88093.0,88077.0,0.65533242]
[1769457394756,0.38024621,88100.0,88071.0,0.01135447]
[1769457394757,0.03,88092.0,88080.0,0.02371768]
[1769457394928,0.03,88092.0,88080.0,0.6790501]
[1769457395675,0.03,88097.0,88080.0,0.6790501]
[1769457396225,0.05367186,88097.0,88080.0,0.6790501]
[1769457396554,0.03,88089.0,88075.0,0.65533242]
[1769457396904,0.03,88089.0,88073.0,0.02371768]
[1769457398422,0.05367186,88089.0,88073.0,0.02371768]
[1769457401884,0.03,88089.0,88074.0,0.65533242]
[1769457402096,0.03,88089.0,88075.0,0.02371768]
[1769457402330,0.03,88089.0,88077.0,0.02371768]
[1769457402996,0.03,88094.0,88078.0,0.65533242]
[1769457403358,0.03,88094.0,88085.0,0.65533242]
[1769457403593,0.03,88094.0,88088.0,0.02371768]
[1769457403796,0.03,88094.0,88088.0,0.6790501]
[1769457404007,0.40391807,88110.0,88089.0,0.02371768]
[1769457404209,0.03,88109.0,88089.0,0.6790501]
[1769457404420,0.05367186,88109.0,88089.0,0.6790501]
[1769457404959,0.05367186,88109.0,88089.0,0.02371768]
[1769457405158,0.03,88107.0,88089.0,0.02371768]
[1769457405363,0.17319039,88107.0,88089.0,0.02371768]
[1769457405744,0.03,88105.0,88089.0,0.02371768]
[1769457410894,0.17319039,88099.0,88075.0,0.0245221]
[1769457411098,0.03,88095.0,88076.0,0.64840413]
[1769457411295,0.03,88095.0,88078.0,0.64840413]
[1769457411506,0.03,88095.0,88079.0,0.0245221]
[1769457411710,0.03,88089.0,88079.0,0.0245221]
[1769457411915,0.08534366,88089.0,88079.0,0.0245221]
[1769457412269,0.08534366,88089.0,88073.0,0.67292623]
[1769457412443,0.08534366,88089.0,88073.0,0.0245221]
[1769457412644,0.03,88087.0,88073.0,0.0245221]
[1769457418302,0.03,88089.0,88074.0,0.64840413]
[1769457418504,0.03,88089.0,88075.0,0.0245221]
[1769457419210,0.03,88089.0,88075.0,0.64840413]
[1769457419442,0.03,88093.0,88076.0,0.0245221]
[1769457419712,0.03,88093.0,88078.0,0.0245221]
[1769457420622,0.03,88092.0,88078.0,0.0245221]
[1769457421510,0.03,88091.0,88078.0,0.0245221]
[1769457422190,0.03,88091.0,88078.0,0.67292623]
[1769457422592,0.03,88090.0,88078.0,0.67292623]
[1769457423068,0.03,88090.0,88078.0,0.74021885]
[1769457423273,0.03,88090.0,88078.0,0.67292623]
[1769457423677,0.03,88089.0,88078.0,0.67292623]
[1769457424111,0.03,88089.0,88078.0,0.0245221]
[1769457424822,0.03,88091.0,88078.0,0.0245221]
[1769457425015,0.03,88089.0,88078.0,0.0245221]
[1769457426094,0.38024621,88090.0,88072.0,0.03394061]
[1769457426095,0.03,88087.0,88072.0,0.03394061]
[1769457426308,0.33263852,88090.0,88072.0,0.03394061]
[1769457427114,0.03,88089.0,88072.0,0.03394061]
[1769457430270,0.03,88089.0,88073.0,0.04068646]
[1769457430477,0.03,88089.0,88066.0,0.17452]
[1769457430478,0.03,88089.0,88074.0,0.04068646]
[1769457430772,0.03,88089.0,88075.0,0.04293509]
[1769457435656,0.03,88088.0,88075.0,0.04293509]
[1769457435877,0.03,88088.0,88075.0,0.04743223]
[1769457436765,0.03,88087.0,88075.0,0.04743223]
[1769457437715,0.03,88089.0,88075.0,0.04743223]
[1769457438567,0.03,88074.0,88064.0,0.04518364]
[1769457439622,0.03,88073.0,88064.0,0.04518364]
[1769457440760,0.03,88072.0,88064.0,0.04518364]
[1769457441794,0.03,88071.0,88064.0,0.04518364]
[1769457441986,0.03,88071.0,88063.0,0.0001636]
[1769457442178,0.07103457,88071.0,88063.0,0.0001636]
[1769457442586,0.03,88071.0,88063.0,0.0001636]
[1769457442788,0.03,88070.0,88063.0,0.0001636]
[1769457443204,0.03,88070.0,88052.0,0.65397074]
[1769457443411,0.46711893,88070.0,88052.0,0.65397074]
[1769457443755,0.03,88061.0,88050.0,0.0002207]
[1769457444057,0.00481635,88060.0,88039.0,0.63005509]
[1769457444186,0.00481635,88060.0,88040.0,0.02391565]
[1769457444551,0.00481635,88060.0,88041.0,0.02391565]
[1769457444743,0.00481635,88060.0,88041.0,0.63005509]
[1769457444922,0.03,88061.0,88042.0,0.02391565]
[1769457445312,0.04439845,88061.0,88043.0,0.02391565]
[1769457446503,0.03,88061.0,88043.0,0.02391565]
[1769457452393,0.03,88061.0,88044.0,0.02391565]
[1769457452943,0.03,88060.0,88051.0,0.02391565]
[1769457453149,0.03,88060.0,88037.0,0.0002207]
[1769457453150,0.38034565,88070.0,88058.0,0.65505508]
[1769457454150,0.03,88069.0,88058.0,0.65505508]
[1769457454357,0.03,88069.0,88058.0,0.02499999]
[1769457457067,0.03,88069.0,88058.0,1e-08]
[1769457457272,0.03,88069.0,88053.0,0.63005509]
[1769457457273,0.03,88069.0,88054.0,0.02391565]
[1769457457473,0.03,88069.0,88055.0,0.06539707]
[1769457458040,0.03,88069.0,88054.0,0.02391565]
[1769457462578,0.38013755,88070.0,88054.0,0.02391565]
[1769457463794,0.55469755,88070.0,88054.0,0.02391565]
[1769457464811,0.57880299,88070.0,88054.0,0.02391565]
[1769457466193,0.67758449,88070.0,88054.0,0.02391565]
[1769457467458,0.67758449,88070.0,88054.0,0.08931272]
[1769457467662,0.67758449,88070.0,88050.0,0.38034565]
[1769457467663,0.17456,88069.0,88055.0,0.02391565]
[1769457467868,0.17456,88069.0,88056.0,0.63005509]
[1769457469046,0.03,88073.0,88057.0,0.02330445]
[1769457469247,0.03,88073.0,88060.0,0.66833959]
[1769457469449,0.03,88073.0,88060.0,0.69164404]
[1769457471082,0.03,88073.0,88060.0,0.76080844]
[1769457471488,0.03,88069.0,88060.0,0.76080844]
[1769457471690,0.03,88069.0,88060.0,0.69164404]
[1769457472288,0.03,88069.0,88060.0,0.66833959]
[1769457474432,0.03,88068.0,88060.0,0.66833959]
[1769457475396,0.03,88067.0,88060.0,0.66833959]
[1769457476554,0.0301659,88073.0,88060.0,0.66833959]
[1769457476787,0.05271933,88073.0,88060.0,0.66833959]
[1769457476914,0.05271933,88073.0,88060.0,0.73750399]
[1769457477518,0.05271933,88073.0,88060.0,0.66833959]
[1769457477727,0.03,88071.0,88060.0,0.66833959]
[1769457478783,0.03,88070.0,88060.0,0.66833959]
[1769457479961,0.03,88071.0,88060.0,0.66833959]
[1769457480138,0.03,88069.0,88041.0,0.66833959]
[1769457480352,0.05255343,88069.0,88044.0,0.01204465]
[1769457480554,0.05255343,88069.0,88047.0,0.66833959]
[1769457480752,0.05255343,88069.0,88049.0,0.66833959]
[1769457480954,0.05255343,88069.0,88049.0,0.67588766]
[1769457481240,0.05255343,88069.0,88042.0,0.12296099]
[1769457481241,0.05255343,88069.0,88051.0,0.66833959]
[1769457481480,0.05255343,88069.0,88051.0,0.67588766]
[1769457481804,0.05255343,88069.0,88053.0,0.66833959]
[1769457490514,0.23036,88070.0,88053.0,0.66833959]
[1769457490712,0.23036,88070.0,88053.0,0.66933959]